fUSD/lending_fUSD_20251014
["ID","MTS","AMOUNT","RATE_DAILY","PERIOD"]
[391292834,1760470299324,-1217.28,0.00017534,2]
[391292835,1760470299334,-1480.48,0.00017534,2]
[391292836,1760470299603,-1753.61,0.00017534,2]
[391292837,1760470299614,-500.0,0.00017534,2]
[391292838,1760470299624,-505.01704256,0.00017534,2]
[391292839,1760470299633,-1130.79,0.00017534,2]
[391292840,1760470299646,-535.61,0.00017534,2]
[391292841,1760470299655,-599.0358139,0.00017534,2]
[391292842,1760470299665,-1367.18,0.00017534,2]
[391292843,1760470299674,-3297.12,0.00017534,2]
[391292844,1760470299684,-898.87,0.00017534,2]
[391292845,1760470299693,-661.15,0.00017534,2]
[391292846,1760470299702,-552.91,0.00017534,2]
[391292847,1760470299711,-500.0,0.00017534,2]
[391292848,1760470299720,-1410.07,0.00017534,2]
[391292849,1760470299729,-500.0,0.00017534,2]
[391292850,1760470299739,-500.0,0.00017534,2]
[391292851,1760470299747,-703.39,0.00017534,2]
[391292852,1760470299756,-1557.16,0.00017534,2]
[391292853,1760470299765,-1047.56,0.00017534,2]
[391292854,1760470299774,-600.5,0.00017534,2]
[391292855,1760470299783,-500.0,0.00017534,2]
[391292856,1760470299792,-891.55,0.00017534,2]
[391292857,1760470299801,-645.01,0.00017534,2]
[391292858,1760470299811,-500.0,0.00017534,2]
[391292859,1760470299820,-902.56,0.00017534,2]
[391292860,1760470299829,-500.0,0.00017534,2]
[391292861,1760470299839,-500.0,0.00017534,2]
[391292862,1760470299848,-1136.29,0.00017534,2]
[391292863,1760470299857,-500.0,0.00017534,2]
[391292864,1760470299866,-500.0,0.00017534,2]
[391292865,1760470299875,-500.0,0.00017534,2]
[391292866,1760470299884,-500.0,0.00017534,2]
[391292867,1760470299895,-1473.97,0.00017534,2]
[391292868,1760470299904,-500.0,0.00017534,2]
[391292869,1760470299913,-1334.03,0.00017534,2]
[391292870,1760470299922,-347.12624929,0.00017534,2]
[391292871,1760470299931,-1490.74,0.00017534,2]
[391292872,1760470299939,-500.0,0.00017534,2]
[391292873,1760470299948,-500.0,0.00017534,2]
[391292874,1760470299957,-500.0,0.00017534,2]
[391292875,1760470299966,-500.0,0.00017534,2]
[391292876,1760470299975,-789.35,0.00017534,2]
[391292877,1760470299984,-2159.89,0.00017534,2]
[391292878,1760470299993,-612.88,0.00017534,2]
[391292879,1760470300002,-700.37,0.00017534,2]
[391292880,1760470300011,-883.13,0.00017534,2]
[391292881,1760470300020,-883.13,0.00017534,2]
[391292882,1760470300029,-500.0,0.00017534,2]
[391292883,1760470300038,-960.44,0.00017534,2]
[391292884,1760470300047,-840.38,0.00017534,2]
[391292885,1760470300056,-1041.65,0.00017534,2]
[391292886,1760470300066,-585.66,0.00017534,2]
[391292887,1760470300075,-500.0,0.00017534,2]
[391292888,1760470300084,-500.0,0.00017534,2]
[391292889,1760470300093,-1639.89,0.00017534,2]
[391292890,1760470300103,-947.54,0.00017534,2]
[391292891,1760470300112,-170.38188994,0.00017534,2]
[391292892,1760470300121,-500.0,0.00017534,2]
[391292893,1760470300131,-1563.92,0.00017534,2]
[391292894,1760470300141,-500.0,0.00017534,2]
[391292895,1760470300150,-1905.46,0.00017534,2]
[391292896,1760470300159,-849.33,0.00017534,2]
[391292897,1760470300168,-1251.39,0.00017534,2]
[391292898,1760470300178,-749.46,0.00017534,2]
[391292899,1760470300187,-1114.36,0.00017534,2]
[391292900,1760470300196,-500.0,0.00017534,2]
[391292901,1760470300205,-881.45,0.00017534,2]
[391292902,1760470300214,-429.39640051,0.00017534,2]
[391292903,1760470300224,-1652.81,0.00017534,2]
[391292904,1760470300233,-1695.89,0.00017534,2]
[391292905,1760470300242,-500.0,0.00017534,2]
[391292906,1760470300252,-500.0,0.00017534,2]
[391292907,1760470300261,-500.0,0.00017534,2]
[391292908,1760470300271,-154.861262,0.00017534,2]
[391292909,1760470300280,-153.143197,0.00017534,2]
[391292910,1760470300289,-500.0,0.00017534,2]
[391292911,1760470300298,-150.358223,0.00017534,2]
[391292912,1760470300307,-1299.76,0.00017534,2]
[391292913,1760470300316,-500.0,0.00017534,2]
[391292914,1760470300325,-500.0,0.00017534,2]
[391292915,1760470300334,-500.0,0.00017534,2]
[391292916,1760470300343,-500.0,0.00017534,2]
[391292917,1760470300352,-500.0,0.00017534,2]
[391292918,1760470300361,-588.97,0.00017534,2]
[391292919,1760470300370,-500.0,0.00017534,2]
[391292920,1760470300380,-500.0,0.00017534,2]
[391292921,1760470300391,-500.0,0.00017534,2]
[391292922,1760470300402,-500.0,0.00017534,2]
[391292923,1760470300411,-500.0,0.00017534,2]
[391292924,1760470300420,-607.78927354,0.00017534,2]
[391292925,1760470300429,-500.0,0.00017534,2]
[391292926,1760470300440,-500.0,0.00017534,2]
[391292927,1760470300451,-500.0,0.00017534,2]
[391292928,1760470300460,-1947.9,0.00017534,2]
[391292929,1760470300471,-1148.28,0.00017534,2]
[391292930,1760470300481,-500.0,0.00017534,2]
[391292931,1760470300490,-500.0,0.00017534,2]
[391292932,1760470300499,-500.0,0.00017534,2]
[391292933,1760470300508,-1967.11,0.00017534,2]
[391292934,1760470300517,-500.0,0.00017534,2]
[391292935,1760470300526,-1890.01,0.00017534,2]
[391292936,1760470300535,-504.50865805,0.00017534,2]
[391292937,1760470300544,-500.0,0.00017534,2]
[391292938,1760470300553,-500.0,0.00017534,2]
[391292939,1760470300562,-969.98,0.00017534,2]
[391292940,1760470300571,-500.0,0.00017534,2]
[391292941,1760470300580,-609.72,0.00017534,2]
[391292942,1760470300589,-500.0,0.00017534,2]
[391292943,1760470300598,-1095.05,0.00017534,2]
[391292944,1760470300607,-500.0,0.00017534,2]
[391292945,1760470300616,-500.0,0.00017534,2]
[391292946,1760470300626,-1190.56,0.00017534,2]
[391292947,1760470300635,-500.0,0.00017534,2]
[391292948,1760470300645,-500.0,0.00017534,2]
[391292949,1760470300654,-500.0,0.00017534,2]
[391292950,1760470300664,-500.0,0.00017534,2]
[391292951,1760470300673,-500.0,0.00017534,2]
[391292952,1760470300682,-1925.21,0.00017534,2]
[391292953,1760470300691,-212.88788338,0.00017534,2]
[391292954,1760470300700,-500.0,0.00017534,2]
[391292955,1760470300709,-899.42,0.00017534,2]
[391292956,1760470300718,-500.0,0.00017534,2]
[391292957,1760470300727,-500.0,0.00017534,2]
[391292958,1760470300736,-500.0,0.00017534,2]
[391292959,1760470300745,-500.0,0.00017534,2]
[391292960,1760470300754,-500.0,0.00017534,2]
[391292961,1760470300763,-1851.66,0.00017534,2]
[391292962,1760470300772,-399.02367389,0.00017534,2]
[391292963,1760470300781,-500.0,0.00017534,2]
[391292964,1760470300790,-1662.99,0.00017534,2]
[391292965,1760470300799,-500.0,0.00017534,2]
[391292966,1760470300808,-500.0,0.00017534,2]
[391292967,1760470300817,-500.0,0.00017534,2]
[391292968,1760470300826,-500.0,0.00017534,2]
[391292969,1760470300835,-500.0,0.00017534,2]
[391292970,1760470300844,-643.38,0.00017534,2]
[391292971,1760470300853,-500.0,0.00017534,2]
[391292972,1760470300862,-500.0,0.00017534,2]
[391292973,1760470300871,-500.0,0.00017534,2]
[391292974,1760470300881,-500.0,0.00017534,2]
[391292975,1760470300890,-545.59,0.00017534,2]
[391292976,1760470300899,-500.0,0.00017534,2]
[391292977,1760470300908,-403.55883166,0.00017534,2]
[391292978,1760470300917,-1563.54,0.00017534,2]
[391292979,1760470300926,-500.0,0.00017534,2]
[391292980,1760470300936,-500.0,0.00017534,2]
[391292981,1760470300945,-500.0,0.00017534,2]
[391292982,1760470300954,-2066.64,0.00017534,2]
[391292983,1760470300963,-639.57,0.00017534,2]
[391292984,1760470300972,-412.76,0.00017534,2]
[391292985,1760470300981,-1135.3,0.00017534,2]
[391292986,1760470301001,-504.927203,0.00017534,2]
[391292987,1760470301018,-1788.4,0.00017534,2]
[391292988,1760470301036,-500.0,0.00017534,2]
[391292989,1760470301055,-553.21,0.00017534,2]
[391292990,1760470301070,-574.43,0.00017534,2]
[391292991,1760470301090,-500.0,0.00017534,2]
[391292992,1760470301109,-500.0,0.00017534,2]
[391292993,1760470301126,-500.0,0.00017534,2]
[391292994,1760470301146,-510.64,0.00017534,2]
[391292995,1760470301163,-789.67,0.00017534,2]
[391292996,1760470301182,-672.5,0.00017534,2]
[391292997,1760470301198,-1162.65,0.00017534,2]
[391292998,1760470301214,-522.32942948,0.00017534,2]
[391292999,1760470301230,-500.0,0.00017534,2]
[391293000,1760470301244,-500.0,0.00017534,2]
[391293001,1760470301261,-585.68,0.00017534,2]
[391293002,1760470301277,-500.0,0.00017534,2]
[391293003,1760470301291,-500.0,0.00017534,2]
[391293004,1760470301306,-631.45,0.00017534,2]
[391293005,1760470301321,-500.0,0.00017534,2]
[391293006,1760470301336,-1167.34,0.00017534,2]
[391293007,1760470301352,-500.0,0.00017534,2]
[391293008,1760470301368,-500.0,0.00017534,2]
[391293009,1760470301383,-1847.92,0.00017534,2]
[391293010,1760470301403,-500.0,0.00017534,2]
[391293011,1760470301418,-500.0,0.00017534,2]
[391293012,1760470301433,-500.0,0.00017534,2]
[391293013,1760470301450,-1532.08,0.00017534,2]
[391293014,1760470301468,-500.0,0.00017534,2]
[391293015,1760470301484,-789.69,0.00017534,2]
[391293016,1760470301502,-500.0,0.00017534,2]
[391293017,1760470301519,-1328.02,0.00017534,2]
[391293018,1760470301534,-1654.08,0.00017534,2]
[391293019,1760470301549,-500.0,0.00017534,2]
[391293020,1760470301564,-906.08,0.00017534,2]
[391293021,1760470301579,-500.0,0.00017534,2]
[391293022,1760470301595,-430.16427585,0.00017534,2]
[391293023,1760470301610,-634.56,0.00017534,2]
[391293024,1760470301626,-538.12,0.00017534,2]
[391293025,1760470301642,-500.0,0.00017534,2]
[391293026,1760470301658,-500.0,0.00017534,2]
[391293027,1760470301672,-1061.26,0.00017534,2]
[391293028,1760470301687,-500.0,0.00017534,2]
[391293029,1760470301702,-500.0,0.00017534,2]
[391293030,1760470301717,-500.0,0.00017534,2]
[391293031,1760470301732,-500.0,0.00017534,2]
[391293032,1760470301747,-618.58,0.00017534,2]
[391293033,1760470301762,-500.0,0.00017534,2]
[391293034,1760470301777,-500.0,0.00017534,2]
[391293035,1760470301791,-500.0,0.00017534,2]
[391293036,1760470301807,-500.0,0.00017534,2]
[391293037,1760470301822,-1128.82,0.00017534,2]
[391293038,1760470301837,-500.0,0.00017534,2]
[391293039,1760470301852,-669.16,0.00017534,2]
[391293040,1760470301866,-500.0,0.00017534,2]
[391293041,1760470301881,-504.62,0.00017534,2]
[391293042,1760470301896,-550.48,0.00017534,2]
[391293043,1760470301912,-1443.49,0.00017534,2]
[391293044,1760470301926,-500.0,0.00017534,2]
[391293045,1760470301942,-500.0,0.00017534,2]
[391293046,1760470301957,-1481.44,0.00017534,2]
[391293047,1760470301971,-639.2052251,0.00017534,2]
[391293048,1760470301986,-1472.05,0.00017534,2]
[391293049,1760470302000,-500.0,0.00017534,2]
[391293050,1760470302015,-1579.46,0.00017534,2]
[391293051,1760470302030,-500.0,0.00017534,2]
[391293052,1760470302044,-536.91,0.00017534,2]
[391293053,1760470302059,-1231.16,0.00017534,2]
[391293054,1760470302073,-976.88,0.00017534,2]
[391293055,1760470302088,-500.0,0.00017534,2]
[391293056,1760470302103,-700.83,0.00017534,2]
[391293057,1760470302119,-500.0,0.00017534,2]
[391293058,1760470302136,-500.0,0.00017534,2]
[391293059,1760470302155,-500.0,0.00017534,2]
[391293060,1760470302172,-668.16,0.00017534,2]
[391293061,1760470302188,-578.51,0.00017534,2]
[391293062,1760470302204,-779.53,0.00017534,2]
[391293063,1760470302219,-639.8,0.00017534,2]
[391293064,1760470302243,-500.0,0.00017534,2]
[391293065,1760470302259,-525.58674775,0.00017534,2]
[391293066,1760470302275,-808.76,0.00017534,2]
[391293067,1760470302290,-500.0,0.00017534,2]
[391293068,1760470302307,-500.0,0.00017534,2]
[391293069,1760470302322,-642.78,0.00017534,2]
[391293070,1760470302338,-840.69,0.00017534,2]
[391293071,1760470302354,-500.0,0.00017534,2]
[391293072,1760470302370,-500.0,0.00017534,2]
[391293073,1760470302385,-511.02,0.00017534,2]
[391293074,1760470302406,-796.21,0.00017534,2]
[391293075,1760470302421,-500.0,0.00017534,2]
[391293076,1760470302439,-1118.93,0.00017534,2]
[391293077,1760470302455,-868.41,0.00017534,2]
[391293078,1760470302471,-500.0,0.00017534,2]
[391293079,1760470302485,-500.0,0.00017534,2]
[391293080,1760470302501,-500.0,0.00017534,2]
[391293081,1760470302516,-1870.46,0.00017534,2]
[391293082,1760470302531,-518.94491884,0.00017534,2]
[391293083,1760470302546,-500.0,0.00017534,2]
[391293084,1760470302562,-558.37,0.00017534,2]
[391293085,1760470302576,-500.0,0.00017534,2]
[391293086,1760470302590,-539.96,0.00017534,2]
[391293087,1760470302606,-1228.28,0.00017534,2]
[391293088,1760470302621,-1002.95,0.00017534,2]
[391293089,1760470302636,-500.0,0.00017534,2]
[391293090,1760470302653,-627.04,0.00017534,2]
[391293091,1760470302668,-688.47,0.00017534,2]
[391293092,1760470302682,-989.31,0.00017534,2]
[391293093,1760470302697,-503.21,0.00017534,2]
[391293094,1760470302711,-500.0,0.00017534,2]
[391293095,1760470302725,-1208.46,0.00017534,2]
[391293096,1760470302740,-500.0,0.00017534,2]
[391293097,1760470302755,-1347.55,0.00017534,2]
[391293098,1760470302769,-968.38,0.00017534,2]
[391293099,1760470302783,-500.0,0.00017534,2]
[391293100,1760470302797,-1432.36,0.00017534,2]
[391293101,1760470302812,-550.09,0.00017534,2]
[391293102,1760470302825,-634.49,0.00017534,2]
[391293103,1760470302839,-582.07,0.00017534,2]
[391293104,1760470302853,-500.0,0.00017534,2]
[391293105,1760470302867,-500.0,0.00017534,2]
[391293106,1760470302881,-500.0,0.00017534,2]
[391293107,1760470302897,-577.61,0.00017534,2]
[391293108,1760470302912,-666.69,0.00017534,2]
[391293109,1760470302926,-500.0,0.00017534,2]
[391293110,1760470302940,-599.86,0.00017534,2]
[391293111,1760470302954,-559.69,0.00017534,2]
[391293112,1760470302968,-500.0,0.00017534,2]
[391293113,1760470302982,-1546.65,0.00017534,2]
[391293114,1760470302996,-590.69,0.00017534,2]
[391293115,1760470303011,-1017.67,0.00017534,2]
[391293116,1760470303025,-500.0,0.00017534,2]
[391293117,1760470303039,-1405.19,0.00017534,2]
[391293118,1760470303054,-500.0,0.00017534,2]
[391293119,1760470303068,-1481.46,0.00017534,2]
[391293120,1760470303082,-500.0,0.00017534,2]
[391293121,1760470303096,-1493.35,0.00017534,2]
[391293122,1760470303110,-1863.88,0.00017534,2]
[391293123,1760470303124,-500.0,0.00017534,2]
[391293124,1760470303138,-1165.81,0.00017534,2]
[391293125,1760470303153,-615.04,0.00017534,2]
[391293126,1760470303166,-500.0,0.00017534,2]
[391293127,1760470303182,-500.0,0.00017534,2]
[391293128,1760470303196,-500.0,0.00017534,2]
[391293129,1760470303210,-500.0,0.00017534,2]
[391293130,1760470303225,-500.0,0.00017534,2]
[391293131,1760470303243,-500.0,0.00017534,2]
[391293132,1760470303257,-845.77,0.00017534,2]
[391293133,1760470303272,-500.0,0.00017534,2]
[391293134,1760470303286,-995.12,0.00017534,2]
[391293135,1760470303300,-500.0,0.00017534,2]
[391293136,1760470303315,-500.0,0.00017534,2]
[391293137,1760470303330,-500.0,0.00017534,2]
[391293138,1760470303345,-666.9,0.00017534,2]
[391293139,1760470303660,-500.0,0.00017534,2]
[391293140,1760470303684,-500.0,0.00017534,2]
[391293141,1760470303707,-500.0,0.00017534,2]
[391293142,1760470303716,-500.0,0.00017534,2]
[391293143,1760470303725,-423.04958502,0.00017534,2]
[391293144,1760470303734,-500.0,0.00017534,2]
[391293145,1760470303743,-630.12,0.00017534,2]
[391293146,1760470303752,-500.0,0.00017534,2]
[391293147,1760470303761,-500.0,0.00017534,2]
[391293148,1760470303770,-702.68,0.00017534,2]
[391293149,1760470303779,-561.19581224,0.00017534,2]
[391293150,1760470305425,-1036.82500001,0.00016438,2]
[391293151,1760470305482,-22.07499999,0.00016438,2]
[391293152,1760470305492,-500.0,0.00016438,2]
[391293153,1760470305501,-500.0,0.00016438,2]
[391293154,1760470305510,-151.0,0.00016438,2]
[391293155,1760470305519,-2946.87,0.00016712,2]
[391293156,1760470305528,-1058.9,0.00016712,2]
[391293157,1760470305537,-516.02491136,0.00016712,2]
[391293158,1760470305546,-500.0,0.00016712,2]
[391293159,1760470305555,-151.0,0.00016712,2]
[391293160,1760470305564,-151.0,0.00016712,2]
[391293161,1760470305573,-2946.87,0.00016986,2]
[391293162,1760470305582,-1058.9,0.00016986,2]
[391293163,1760470305592,-500.0,0.00016986,2]
[391293164,1760470305601,-151.0,0.00016986,2]
[391293165,1760470305610,-151.0,0.0001726,2]
[391293166,1760470305620,-1190.95496877,0.0001726,2]
[391293167,1760470305638,-1755.91503123,0.0001726,2]
[391293168,1760470305649,-1058.9,0.0001726,2]
[391293169,1760470305658,-500.0,0.0001726,2]
[391293170,1760470305667,-151.0,0.0001726,2]
[391293171,1760470305675,-483.82418776,0.00017534,2]
[391293172,1760470305684,-184.82933833,0.00017534,2]
[391293173,1760470305698,-315.17066167,0.00017534,2]
[391293174,1760470305707,-269.29085329,0.00017534,2]
[391293175,1760470305716,-500.0,0.00017534,2]
[391293176,1760470305725,-500.0,0.00017534,2]
[391293177,1760470305735,-304.68778863,0.00017534,2]
[391293178,1760470305743,-500.0,0.00017534,2]
[391293179,1760470305752,-133.82519856,0.00017534,2]
[391293187,1760470330551,402.67293089,0.00027397,120]
[391293243,1760470395744,500.0,0.00024697,120]
[391293244,1760470396113,500.0,0.00025599,120]
[391293245,1760470396511,500.0,0.00026501,120]
[391293246,1760470403880,2000.0,0.00024697,120]
[391293247,1760470404279,2000.0,0.00025327,120]
[391293248,1760470404662,2000.0,0.00025958,120]
[391293249,1760470405022,2000.0,0.00026588,120]
[391293250,1760470405650,2000.0,0.00027218,120]
[391293251,1760470419547,500.0,0.00024697,120]
[391293252,1760470419897,500.0,0.00025663,120]
[391293253,1760470420301,500.0,0.00026629,120]
[391293254,1760470427244,500.0,0.00026003,120]
[391293255,1760470427619,500.0,0.00027309,120]
[391293258,1760470503255,177.00681295,0.00027396,120]
[391293263,1760470505167,267.0,0.00026515,120]
[391293296,1760470512211,209.38569123,0.00024679,120]
[391293318,1760470541292,342.97,0.0002739,120]
[391293352,1760470812504,160.0,0.00026538,120]
[391293353,1760470905396,1000.0,0.00027397,120]
[391293354,1760470928917,300.0,0.00027397,120]
[391293355,1760470952221,1000.0,0.00027397,120]
[391293356,1760470968503,416.0,0.0002609,120]
[391293357,1760470968908,416.0,0.0002608,120]
[391293358,1760470970467,416.0,0.0002607,120]
[391293359,1760470970554,416.0,0.0002609,120]
[391293360,1760470970708,416.0,0.0002608,120]
[391293361,1760470970790,416.0,0.0002607,120]
[391293362,1760470971150,416.0,0.0002609,120]
[391293363,1760470971810,416.0,0.0002608,120]
[391293364,1760470972258,416.0,0.0002609,120]
[391293365,1760470972696,425.01,0.0002608,120]
[391293366,1760470996518,500.0,0.00024697,120]
[391293367,1760470996906,500.0,0.00025599,120]
[391293368,1760470997276,500.0,0.00026501,120]
[391293369,1760471002684,1000.0,0.00027397,120]
[391293370,1760471003785,2000.0,0.00024697,120]
[391293371,1760471004248,2000.0,0.00026022,120]
[391293372,1760471005345,2000.0,0.00027347,120]
[391293373,1760471009063,500.0,0.00024697,120]
[391293374,1760471009427,500.0,0.00025663,120]
[391293375,1760471010542,500.0,0.00026629,120]
[391293376,1760471018457,500.0,0.00026003,120]
[391293377,1760471018842,500.0,0.00027309,120]
[391293378,1760471037202,509.196061,0.00027397,120]
[391293379,1760471052429,1000.0,0.00027397,120]
[391293380,1760471097940,1000.0,0.00027397,120]
[391293381,1760471102680,500.0,0.00027397,120]
[391293382,1760471103099,167.23,0.00027397,120]
[391293383,1760471103140,2570.61,0.00027397,120]
[391293384,1760471108417,209.38569123,0.00024679,120]
[391293385,1760471128075,223.0,0.00026853,120]
[391293386,1760471148261,1000.0,0.00027397,120]
[391293387,1760471175164,150.0,0.00026027,120]
[391293388,1760471176633,150.0,0.00026027,120]
[391293389,1760471176753,150.0,0.00026027,120]
[391293390,1760471176835,150.0,0.00026027,120]
[391293391,1760471177081,151.65324234,0.00026027,120]
[391293392,1760471188480,1010.55734284,0.00027397,120]
[391293393,1760471236611,300.0,0.00027397,120]
[391293395,1760471291682,287.0,0.00027261,120]
[391293396,1760471326859,1000.0,0.00027397,120]
[391293398,1760471409139,167.0,0.0002694,120]
[391293414,1760471431712,-701.62574342,0.00015166,2]
[391293419,1760471431814,-2559.07425658,0.00015166,2]
[391293420,1760471431823,-1200.0,0.00015384,2]
[391293421,1760471431832,-2500.0,0.00015385,2]
[391293422,1760471431844,-30110.93,0.00015386,2]
[391293423,1760471431853,-1144.0,0.00015431,2]
[391293424,1760471431863,-2500.0,0.00015436,2]
[391293425,1760471431872,-300.0,0.00015487,2]
[391293426,1760471431883,-1642.32137398,0.00015488,2]
[391293427,1760471431895,-22440.48698464,0.00015488,2]
[391293428,1760471431907,-648.71472917,0.00015488,2]
[391293429,1760471431918,-14248.14691221,0.00015488,2]
[391293430,1760471431928,-200.0,0.00015553,2]
[391293431,1760471431938,-418.37,0.00015639,2]
[391293432,1760471431947,-250.0,0.00015668,7]
[391293433,1760471431956,-150.0,0.0001576,2]
[391293434,1760471431966,-1432.23,0.00015786,2]
[391293435,1760471431975,-164.29,0.0001592,2]
[391293436,1760471431984,-693.3919763,0.00015954,2]
[391293437,1760471431993,-9552.16786547,0.00015954,2]
[391293438,1760471432003,-151.0,0.00015954,2]
[391293439,1760471432012,-277.35679052,0.00015954,2]
[391293440,1760471432021,-1852.42,0.0001596,2]
[391293441,1760471432030,-10062.53714054,0.00015964,2]
[391293442,1760471432039,-474.58,0.00015973,2]
[391293443,1760471432048,-474.58,0.00015973,2]
[391293444,1760471432057,-1389.9,0.00016001,2]
[391293445,1760471432066,-9905.5980765,0.00016009,2]
[391293446,1760471432075,-10272.10520533,0.00016064,2]
[391293447,1760471432085,-10652.17309792,0.00016119,2]
[391293448,1760471432098,-11046.30350255,0.00016174,2]
[391293449,1760471432108,-11455.01673214,0.00016229,2]
[391293450,1760471432116,-546.46,0.00016247,2]
[391293451,1760471432126,-826.9,0.00016247,2]
[391293452,1760471432134,-546.46,0.00016247,2]
[391293453,1760471432143,-413.45,0.00016247,2]
[391293454,1760471432153,-441.84,0.00016247,2]
[391293455,1760471432162,-377.79,0.00016247,2]
[391293456,1760471432171,-161.74,0.00016253,2]
[391293457,1760471432179,-6021.05451546,0.00016284,2]
[391293458,1760471432189,-810.44848626,0.0001633,2]
[391293459,1760471432198,-336.0783216,0.0001633,2]
[391293460,1760471432208,-1779.6528,0.0001633,2]
[391293461,1760471432217,-5000.0,0.0001633,2]
[391293462,1760471432226,-414.09631734,0.00016337,2]
[391293463,1760471432235,-1699.516,0.00016338,2]
[391293464,1760471432244,-418.40850319,0.00016338,2]
[391293465,1760471432253,-181.61025184,0.00016338,2]
[391293466,1760471432263,-1383.94876449,0.00016338,2]
[391293467,1760471432273,-1020.776161,0.00016338,2]
[391293468,1760471432282,-500.0,0.0001636,2]
[391293469,1760471432291,-501.11290986,0.0001636,2]
[391293470,1760471432301,-810.44848622,0.00016361,2]
[391293471,1760471432310,-196.66,0.0001639,2]
[391293472,1760471432319,-810.44848622,0.00016393,2]
[391293473,1760471432329,-9669.1828681,0.00016398,2]
[391293474,1760471432338,-45166.73479782,0.000164,2]
[391293475,1760471432428,-5969.18766582,0.000164,2]
[391293476,1760471432439,-2370.94001,0.000164,2]
[391293477,1760471432450,-11254.2814,0.000164,2]
[391293478,1760471434968,-286.42671844,0.0001633,2]
[391293479,1760471434978,-19697.90654582,0.000164,2]
[391293480,1760471435075,-1682.52095999,0.000164,2]
[391293482,1760471435086,-11364.0,0.000164,2]
[391293497,1760471437704,-4329.81022098,0.000164,2]
[391293498,1760471437716,-17483.45446753,0.000164,2]
[391293499,1760471437726,-175.97,0.000164,2]
[391293500,1760471437737,-413.34,0.000164,2]
[391293501,1760471437746,-546.32,0.000164,2]
[391293502,1760471437755,-156.01763878,0.0001642,2]
[391293503,1760471437766,-810.44848622,0.00016424,2]
[391293504,1760471437775,-151.0,0.00016428,2]
[391293505,1760471437784,-151.0,0.00016428,2]
[391293506,1760471437793,-151.0,0.00016428,2]
[391293507,1760471437802,-151.0,0.00016428,2]
[391293508,1760471437810,-151.0,0.00016428,2]
[391293509,1760471437820,-151.0,0.00016428,2]
[391293510,1760471437829,-151.0,0.00016428,2]
[391293511,1760471437838,-151.0,0.00016428,2]
[391293512,1760471437848,-151.0,0.00016428,2]
[391293513,1760471437857,-721.12765535,0.00016428,2]
[391293514,1760471437867,-151.0,0.00016428,2]
[391293515,1760471437876,-151.0,0.00016428,2]
[391293516,1760471437885,-151.0,0.00016428,2]
[391293517,1760471437894,-181.24120545,0.00016428,2]
[391293518,1760471437904,-322.6107,0.00016428,2]
[391293519,1760471437913,-500.0,0.00016428,2]
[391293520,1760471437922,-173.40140874,0.00016428,2]
[391293521,1760471437931,-500.0,0.00016428,2]
[391293522,1760471437941,-500.0,0.00016428,2]
[391293523,1760471437950,-500.0,0.00016428,2]